fUSD/lending_fUSD_20250514
["ID","MTS","AMOUNT","RATE_DAILY","PERIOD"]
[361045083,1747212657592,-3889.35,0.00013465,2]
[361045084,1747212657602,-1717.1,0.00013465,2]
[361045085,1747212657611,-400.0,0.00013465,2]
[361045086,1747212657623,-520.96,0.00013465,2]
[361045087,1747212657633,-2264.97,0.00013465,2]
[361045088,1747212657646,-400.0,0.00013465,2]
[361045089,1747212657656,-664.05,0.00013465,2]
[361045090,1747212657665,-400.0,0.00013465,2]
[361045091,1747212657675,-469.99,0.00013465,2]
[361045092,1747212657685,-1956.27,0.00013465,2]
[361045093,1747212657694,-12500.0,0.0001347,2]
[361045094,1747212657703,-12500.0,0.00013479,2]
[361045095,1747212657712,-12500.0,0.00013488,2]
[361045096,1747212657722,-12500.0,0.00013497,2]
[361045097,1747212657731,-805.34125131,0.000135,2]
[361045098,1747212657739,-12500.0,0.00013506,2]
[361045099,1747212657749,-12500.0,0.00013514,2]
[361045100,1747212657759,-12500.0,0.00013523,2]
[361045101,1747212657768,-12500.0,0.00013532,2]
[361045102,1747212657778,-12500.0,0.00013541,2]
[361045103,1747212657788,-151.0,0.00013541,2]
[361045104,1747212657798,-12500.0,0.0001355,2]
[361045105,1747212657809,-2870.24333675,0.00013555,2]
[361045106,1747212657819,-12500.0,0.00013558,2]
[361045107,1747212657830,-12500.0,0.00013567,2]
[361045108,1747212657841,-500.0,0.00013575,2]
[361045109,1747212657851,-12500.0,0.00013576,2]
[361045110,1747212657862,-12500.0,0.00013585,2]
[361045111,1747212657873,-12500.0,0.00013594,2]
[361045112,1747212657884,-12500.0,0.00013602,2]
[361045113,1747212657900,-12500.0,0.00013611,2]
[361045114,1747212657911,-12500.0,0.0001362,2]
[361045115,1747212657922,-12500.0,0.00013629,2]
[361045116,1747212657932,-12500.0,0.00013638,2]
[361045117,1747212657943,-12500.0,0.00013646,2]
[361045118,1747212657954,-12500.0,0.00013655,2]
[361045119,1747212657964,-12500.0,0.00013664,2]
[361045120,1747212657974,-12500.0,0.00013673,2]
[361045121,1747212657984,-12500.0,0.00013682,2]
[361045122,1747212657995,-12500.0,0.0001369,2]
[361045123,1747212658004,-150.0,0.00013698,2]
[361045124,1747212658014,-1040.08,0.00013698,2]
[361045125,1747212658024,-1040.08,0.00013698,2]
[361045126,1747212658034,-1040.08,0.00013698,2]
[361045127,1747212658044,-1040.08,0.00013698,2]
[361045128,1747212658054,-1040.08,0.00013698,2]
[361045129,1747212658062,-1040.08,0.00013698,2]
[361045130,1747212658072,-1040.08,0.00013698,2]
[361045131,1747212658081,-1040.08,0.00013698,2]
[361045132,1747212658092,-1040.08,0.00013698,2]
[361045133,1747212658102,-1040.08,0.00013698,2]
[361045134,1747212658112,-500.0,0.00013698,2]
[361045135,1747212658123,-200.0,0.00013699,2]
[361045136,1747212658133,-10449.95,0.00013699,2]
[361045137,1747212658147,-224.66,0.00013699,2]
[361045138,1747212658157,-1000.0,0.00013699,2]
[361045139,1747212658167,-500.0,0.00013699,2]
[361045140,1747212658179,-188.32378941,0.00013699,2]
[361045141,1747212658189,-500.0,0.00013699,2]
[361045142,1747212658199,-500.0,0.00013699,2]
[361045143,1747212658209,-160.67314806,0.00013699,2]
[361045144,1747212658219,-507.27009,0.00013699,2]
[361045145,1747212658228,-507.27009,0.00013699,2]
[361045146,1747212658238,-151.0,0.00013699,2]
[361045147,1747212658252,-1953.704317,0.00013699,2]
[361045148,1747212658262,-164.699775,0.00013699,2]
[361045149,1747212658272,-500.0,0.00013699,2]
[361045150,1747212658282,-500.0,0.00013699,2]
[361045151,1747212658292,-500.0,0.00013699,2]
[361045152,1747212658302,-500.0,0.00013699,2]
[361045153,1747212658312,-500.0,0.00013699,2]
[361045154,1747212658322,-500.0,0.00013699,2]
[361045155,1747212658332,-500.0,0.00013699,2]
[361045156,1747212658342,-500.0,0.00013699,2]
[361045157,1747212658352,-500.0,0.00013699,2]
[361045158,1747212658362,-500.0,0.00013699,2]
[361045159,1747212658372,-500.0,0.00013699,2]
[361045160,1747212658381,-490.0,0.00013699,2]
[361045161,1747212658395,-500.0,0.00013699,2]
[361045162,1747212658405,-500.0,0.00013699,2]
[361045163,1747212658415,-500.0,0.00013699,2]
[361045164,1747212658425,-500.0,0.00013699,2]
[361045165,1747212658435,-500.0,0.00013699,2]
[361045166,1747212658444,-500.0,0.00013699,2]
[361045167,1747212658454,-500.0,0.00013699,2]
[361045168,1747212658465,-500.0,0.00013699,2]
[361045169,1747212658475,-500.0,0.00013699,2]
[361045170,1747212658485,-500.0,0.00013699,2]
[361045171,1747212658495,-500.0,0.00013699,2]
[361045172,1747212658505,-500.0,0.00013699,2]
[361045173,1747212658515,-500.0,0.00013699,2]
[361045174,1747212658525,-500.0,0.00013699,2]
[361045175,1747212658537,-500.0,0.00013699,2]
[361045176,1747212658547,-500.0,0.00013699,2]
[361045177,1747212658560,-500.0,0.00013699,2]
[361045178,1747212658570,-500.0,0.00013699,2]
[361045179,1747212658580,-500.0,0.00013699,2]
[361045180,1747212658590,-500.0,0.00013699,2]
[361045181,1747212658600,-500.0,0.00013699,2]
[361045182,1747212658611,-500.0,0.00013699,2]
[361045183,1747212658621,-500.0,0.00013699,2]
[361045184,1747212658631,-500.0,0.00013699,2]
[361045185,1747212658645,-500.0,0.00013699,2]
[361045186,1747212658655,-500.0,0.00013699,2]
[361045187,1747212658665,-500.0,0.00013699,2]
[361045188,1747212658675,-500.0,0.00013699,2]
[361045189,1747212658685,-500.0,0.00013699,2]
[361045190,1747212658695,-500.0,0.00013699,2]
[361045191,1747212658705,-500.0,0.00013699,2]
[361045192,1747212658715,-500.0,0.00013699,2]
[361045193,1747212658726,-500.0,0.00013699,2]
[361045194,1747212658735,-500.0,0.00013699,2]
[361045195,1747212658745,-500.0,0.00013699,2]
[361045196,1747212658755,-500.0,0.00013699,2]
[361045197,1747212658765,-373.10475393,0.00013699,2]
[361045198,1747212658775,-500.0,0.00013699,2]
[361045199,1747212658785,-500.0,0.00013699,2]
[361045200,1747212658794,-500.0,0.00013699,2]
[361045201,1747212658804,-500.0,0.00013699,2]
[361045202,1747212658813,-500.0,0.00013699,2]
[361045203,1747212658822,-500.0,0.00013699,2]
[361045204,1747212658831,-500.0,0.00013699,2]
[361045205,1747212658840,-500.0,0.00013699,2]
[361045206,1747212658849,-500.0,0.00013699,2]
[361045207,1747212658859,-500.0,0.00013699,2]
[361045208,1747212658869,-500.0,0.00013699,2]
[361045209,1747212658879,-500.0,0.00013699,2]
[361045210,1747212658891,-500.0,0.00013699,2]
[361045211,1747212658901,-500.0,0.00013699,2]
[361045212,1747212658910,-500.0,0.00013699,2]
[361045213,1747212658921,-500.0,0.00013699,2]
[361045214,1747212658930,-500.0,0.00013699,2]
[361045215,1747212658940,-500.0,0.00013699,2]
[361045216,1747212658949,-500.0,0.00013699,2]
[361045217,1747212658959,-500.0,0.00013699,2]
[361045218,1747212658968,-500.0,0.00013699,2]
[361045219,1747212658978,-500.0,0.00013699,2]
[361045220,1747212658987,-12500.0,0.00013699,2]
[361045221,1747212658997,-12500.0,0.00013708,2]
[361045222,1747212659007,-3000.0,0.00013712,2]
[361045223,1747212659017,-12500.0,0.00013717,2]
[361045224,1747212659026,-12500.0,0.00013726,2]
[361045225,1747212659036,-12500.0,0.00013734,2]
[361045226,1747212659045,-300.0,0.00013738,2]
[361045227,1747212659055,-713.39,0.00013738,2]
[361045228,1747212659065,-1769.42,0.00013738,2]
[361045229,1747212659076,-427.16,0.00013738,2]
[361045230,1747212659087,-17816.0,0.00013738,2]
[361045231,1747212659097,-430.31,0.00013738,2]
[361045232,1747212659107,-178.57659728,0.00013738,2]
[361045233,1747212659118,-628.05,0.00013738,2]
[361045234,1747212659128,-4836.25,0.00013738,2]
[361045235,1747212659142,-1348.75,0.00013738,2]
[361045236,1747212659152,-1521.19,0.00013738,2]
[361045237,1747212659163,-400.0,0.00013738,2]
[361045238,1747212659173,-480.55,0.00013738,2]
[361045239,1747212659185,-668.98,0.00013738,2]
[361045240,1747212659196,-430.3,0.00013738,2]
[361045241,1747212659207,-809.06,0.00013738,2]
[361045242,1747212659217,-400.0,0.00013738,2]
[361045243,1747212659228,-509.21,0.00013738,2]
[361045244,1747212659239,-400.0,0.00013738,2]
[361045245,1747212659250,-2789.98,0.00013738,2]
[361045246,1747212659260,-1989.58,0.00013738,2]
[361045247,1747212659270,-6723.97,0.00013738,2]
[361045248,1747212659282,-11464.28,0.00013738,2]
[361045249,1747212659293,-2391.36,0.00013738,2]
[361045250,1747212659303,-614.14,0.00013738,2]
[361045251,1747212659313,-5378.41,0.00013738,2]
[361045252,1747212659324,-1868.1,0.00013738,2]
[361045253,1747212659334,-400.0,0.00013738,2]
[361045254,1747212659344,-753.17,0.00013738,2]
[361045255,1747212659354,-2175.0,0.00013738,2]
[361045256,1747212659364,-3011.87,0.00013738,2]
[361045257,1747212659375,-13676.86,0.00013738,2]
[361045258,1747212659390,-528.71,0.00013738,2]
[361045259,1747212659400,-4037.31,0.00013738,2]
[361045260,1747212659410,-1269.6,0.00013738,2]
[361045261,1747212659420,-7881.18,0.00013738,2]
[361045262,1747212659430,-2188.86,0.00013738,2]
[361045263,1747212659441,-400.0,0.00013738,2]
[361045264,1747212659451,-4201.44,0.00013738,2]
[361045265,1747212659462,-728.81,0.00013738,2]
[361045266,1747212659472,-400.0,0.00013738,2]
[361045267,1747212659481,-400.0,0.00013738,2]
[361045268,1747212659492,-400.0,0.00013738,2]
[361045269,1747212659502,-9541.87,0.00013738,2]
[361045270,1747212659513,-540.26,0.00013738,2]
[361045271,1747212659523,-2971.26,0.00013738,2]
[361045272,1747212659538,-6394.05,0.00013738,2]
[361045273,1747212659549,-8616.98,0.00013738,2]
[361045274,1747212659559,-565.48,0.00013738,2]
[361045275,1747212659570,-407.38,0.00013738,2]
[361045276,1747212659582,-747.7,0.00013738,2]
[361045277,1747212659593,-4353.57,0.00013738,2]
[361045278,1747212659603,-3223.62,0.00013738,2]
[361045279,1747212659614,-766.48,0.00013738,2]
[361045280,1747212659625,-400.0,0.00013739,2]
[361045281,1747212659633,-400.0,0.00013739,2]
[361045282,1747212659647,-460.82,0.00013739,2]
[361045283,1747212659657,-428.28,0.00013739,2]
[361045284,1747212659666,-400.0,0.00013739,2]
[361045285,1747212659675,-400.0,0.00013739,2]
[361045286,1747212659685,-400.0,0.00013739,2]
[361045287,1747212659694,-400.0,0.00013739,2]
[361045288,1747212659703,-546.33,0.00013739,2]
[361045289,1747212659713,-889.65,0.00013739,2]
[361045290,1747212659723,-400.0,0.00013739,2]
[361045291,1747212659734,-400.0,0.00013739,2]
[361045292,1747212659744,-583.66,0.00013739,2]
[361045293,1747212659754,-400.0,0.00013739,2]
[361045294,1747212659764,-400.0,0.00013739,2]
[361045295,1747212659774,-1600.14,0.00013739,2]
[361045296,1747212659783,-1040.08,0.00013739,2]
[361045297,1747212659793,-400.0,0.00013739,2]
[361045298,1747212659803,-1802.3,0.00013739,2]
[361045299,1747212659813,-1221.23,0.00013739,2]
[361045300,1747212659823,-1895.91,0.00013739,2]
[361045301,1747212659833,-492.84,0.00013739,2]
[361045302,1747212659843,-400.0,0.00013739,2]
[361045303,1747212659854,-1506.57,0.00013739,2]
[361045304,1747212659864,-2563.99,0.00013739,2]
[361045305,1747212659873,-840.38,0.00013739,2]
[361045306,1747212659883,-482.41,0.00013739,2]
[361045307,1747212659898,-420.5,0.00013739,2]
[361045308,1747212659908,-400.0,0.00013739,2]
[361045309,1747212659919,-400.0,0.00013739,2]
[361045310,1747212659929,-527.69,0.00013739,2]
[361045311,1747212659938,-18564.33,0.00013739,2]
[361045312,1747212659947,-1343.88,0.00013739,2]
[361045313,1747212659957,-2099.34,0.00013739,2]
[361045314,1747212659967,-7356.73,0.00013739,2]
[361045315,1747212659976,-400.0,0.00013739,2]
[361045316,1747212659985,-3060.21,0.00013739,2]
[361045317,1747212659994,-400.0,0.00013739,2]
[361045318,1747212660004,-7402.41,0.00013739,2]
[361045319,1747212660014,-988.29,0.00013739,2]
[361045320,1747212660024,-1425.89,0.00013739,2]
[361045321,1747212660033,-703.29,0.00013739,2]
[361045322,1747212660043,-400.0,0.00013739,2]
[361045323,1747212660053,-400.0,0.00013739,2]
[361045324,1747212660062,-569.77,0.00013739,2]
[361045325,1747212660072,-945.01,0.00013739,2]
[361045326,1747212660080,-895.63,0.00013739,2]
[361045327,1747212660090,-3315.447096,0.00013739,2]
[361045328,1747212660263,-3315.447096,0.00013739,2]
[361045329,1747212660301,-1174.23,0.00013739,2]
[361045330,1747212660312,-735.02,0.00013739,2]
[361045331,1747212660322,-1532.02,0.00013739,2]
[361045332,1747212660332,-455.502423,0.00013739,2]
[361045333,1747212660341,-455.502423,0.00013739,2]
[361045334,1747212660351,-20480.08,0.00013739,2]
[361045335,1747212660362,-375.483124,0.00013739,2]
[361045336,1747212660372,-1724.29,0.00013739,2]
[361045337,1747212660382,-375.483124,0.00013739,2]
[361045338,1747212660396,-239.305926,0.00013739,2]
[361045339,1747212660406,-239.305926,0.00013739,2]
[361045340,1747212660416,-15459.26,0.00013739,2]
[361045341,1747212660426,-22138.74,0.00013739,2]
[361045342,1747212660436,-400.0,0.00013739,2]
[361045343,1747212660446,-1901.78,0.00013739,2]
[361045344,1747212660456,-24898.96,0.00013739,2]
[361045345,1747212660466,-400.0,0.00013739,2]
[361045346,1747212660476,-3889.35,0.00013739,2]
[361045347,1747212660486,-1717.1,0.00013739,2]
[361045348,1747212660495,-400.0,0.00013739,2]
[361045349,1747212660506,-520.96,0.00013739,2]
[361045350,1747212660517,-2264.97,0.00013739,2]
[361045351,1747212660527,-400.0,0.00013739,2]
[361045352,1747212660540,-664.05,0.00013739,2]
[361045353,1747212660550,-400.0,0.00013739,2]
[361045354,1747212660560,-469.99,0.00013739,2]
[361045355,1747212660570,-1956.27,0.00013739,2]
[361045356,1747212660580,-12500.0,0.00013743,2]
[361045357,1747212660590,-500.0,0.00013778,2]
[361045358,1747212660600,-300.3,0.00013876,2]
[361045359,1747212660609,-1000.0,0.00013912,2]
[361045360,1747212660619,-500.0,0.00013988,2]
[361045361,1747212660629,-550.0,0.00014,2]
[361045362,1747212660640,-713.39,0.00014012,2]
[361045363,1747212660649,-300.0,0.00014012,2]
[361045364,1747212660659,-1769.42,0.00014012,2]
[361045365,1747212660668,-427.16,0.00014012,2]
[361045366,1747212660678,-17816.0,0.00014012,2]
[361045367,1747212660688,-430.31,0.00014012,2]
[361045368,1747212660698,-628.05,0.00014012,2]
[361045369,1747212660709,-4836.25,0.00014012,2]
[361045370,1747212660719,-1348.75,0.00014012,2]
[361045371,1747212660729,-1521.19,0.00014012,2]
[361045372,1747212660738,-400.0,0.00014012,2]
[361045373,1747212660749,-480.55,0.00014012,2]
[361045374,1747212660759,-668.98,0.00014012,2]
[361045375,1747212660769,-430.3,0.00014012,2]
[361045376,1747212660779,-809.06,0.00014012,2]
[361045377,1747212660789,-400.0,0.00014012,2]
[361045378,1747212660799,-509.21,0.00014012,2]
[361045379,1747212660810,-400.0,0.00014012,2]
[361045380,1747212660819,-2789.98,0.00014012,2]
[361045381,1747212660829,-1989.58,0.00014012,2]
[361045382,1747212660839,-6723.97,0.00014012,2]
[361045383,1747212660849,-11464.28,0.00014012,2]
[361045384,1747212660859,-2391.36,0.00014012,2]
[361045385,1747212660868,-614.14,0.00014012,2]
[361045386,1747212660878,-5378.41,0.00014012,2]
[361045387,1747212660891,-1868.1,0.00014012,2]
[361045388,1747212660900,-400.0,0.00014012,2]
[361045389,1747212660910,-753.17,0.00014012,2]
[361045390,1747212660921,-2175.0,0.00014012,2]
[361045391,1747212660930,-3011.87,0.00014012,2]
[361045392,1747212660940,-13676.86,0.00014012,2]
[361045393,1747212660950,-528.71,0.00014012,2]
[361045394,1747212660959,-4037.31,0.00014012,2]
[361045395,1747212660968,-1269.6,0.00014012,2]
[361045396,1747212660978,-7881.18,0.00014012,2]
[361045397,1747212660987,-2188.86,0.00014012,2]
[361045398,1747212660997,-400.0,0.00014012,2]
[361045399,1747212661007,-4201.44,0.00014012,2]
[361045400,1747212661016,-728.81,0.00014012,2]
[361045401,1747212661025,-400.0,0.00014012,2]
[361045402,1747212661035,-400.0,0.00014012,2]
[361045403,1747212661044,-400.0,0.00014012,2]
[361045404,1747212661053,-9541.87,0.00014012,2]
[361045405,1747212661063,-540.26,0.00014012,2]
[361045406,1747212661072,-2971.26,0.00014012,2]
[361045407,1747212661081,-6394.05,0.00014012,2]
[361045408,1747212661091,-8616.98,0.00014012,2]
[361045409,1747212661100,-565.48,0.00014012,2]
[361045410,1747212661110,-407.38,0.00014012,2]
[361045411,1747212661120,-747.7,0.00014012,2]
[361045412,1747212661130,-4353.57,0.00014012,2]
[361045413,1747212661143,-3223.62,0.00014012,2]
[361045414,1747212661153,-766.48,0.00014012,2]
[361045415,1747212661163,-400.0,0.00014013,2]
[361045416,1747212661173,-400.0,0.00014013,2]
[361045417,1747212661183,-460.82,0.00014013,2]
[361045418,1747212661192,-428.28,0.00014013,2]
[361045419,1747212661201,-400.0,0.00014013,2]
[361045420,1747212661211,-400.0,0.00014013,2]
[361045421,1747212661222,-400.0,0.00014013,2]
[361045422,1747212661232,-364.82165258,0.00014013,2]
[361045423,1747212661242,-546.33,0.00014013,2]
[361045424,1747212661253,-889.65,0.00014013,2]
[361045425,1747212661263,-400.0,0.00014013,2]
[361045426,1747212661274,-400.0,0.00014013,2]
[361045427,1747212661284,-583.66,0.00014013,2]
[361045428,1747212661294,-400.0,0.00014013,2]
[361045429,1747212661304,-151.38380795,0.00014013,2]
[361045430,1747212661314,-1600.14,0.00014013,2]
[361045431,1747212661324,-1040.08,0.00014013,2]
[361045432,1747212661333,-400.0,0.00014013,2]
[361045433,1747212661343,-1802.3,0.00014013,2]
[361045434,1747212661352,-1221.23,0.00014013,2]
[361045435,1747212661362,-1895.91,0.00014013,2]
[361045436,1747212661371,-492.84,0.00014013,2]
[361045437,1747212661381,-400.0,0.00014013,2]
[361045438,1747212661394,-1506.57,0.00014013,2]
[361045439,1747212661404,-2563.99,0.00014013,2]
[361045440,1747212661413,-840.38,0.00014013,2]
[361045441,1747212661423,-482.41,0.00014013,2]
[361045442,1747212661433,-420.5,0.00014013,2]
[361045443,1747212661442,-400.0,0.00014013,2]
[361045444,1747212661453,-228.48,0.00014013,2]
[361045445,1747212661462,-527.69,0.00014013,2]
[361045446,1747212661471,-18564.33,0.00014013,2]
[361045447,1747212661481,-1343.88,0.00014013,2]
[361045448,1747212661491,-2099.34,0.00014013,2]
[361045449,1747212661501,-7356.73,0.00014013,2]
[361045450,1747212661510,-400.0,0.00014013,2]
[361045451,1747212661520,-3060.21,0.00014013,2]
[361045452,1747212661532,-400.0,0.00014013,2]
[361045453,1747212661543,-7402.41,0.00014013,2]
[361045454,1747212661553,-988.29,0.00014013,2]
[361045455,1747212661562,-1425.89,0.00014013,2]
[361045456,1747212661572,-703.29,0.00014013,2]
[361045457,1747212661583,-400.0,0.00014013,2]
[361045458,1747212661593,-400.0,0.00014013,2]
[361045459,1747212661603,-569.77,0.00014013,2]
[361045460,1747212661615,-945.01,0.00014013,2]
[361045461,1747212661626,-895.63,0.00014013,2]
[361045462,1747212661636,-735.02,0.00014013,2]
[361045463,1747212661647,-1174.23,0.00014013,2]
[361045464,1747212661656,-1532.02,0.00014013,2]
[361045465,1747212661666,-20480.08,0.00014013,2]
[361045466,1747212661675,-1724.29,0.00014013,2]
[361045467,1747212661685,-15459.26,0.00014013,2]
[361045468,1747212661695,-22138.74,0.00014013,2]
[361045469,1747212661706,-400.0,0.00014013,2]
[361045470,1747212661717,-1901.78,0.00014013,2]
[361045471,1747212661727,-24898.96,0.00014013,2]
[361045472,1747212661737,-400.0,0.00014013,2]
[361045473,1747212661747,-3889.35,0.00014013,2]
[361045474,1747212661758,-1717.1,0.00014013,2]
[361045475,1747212661768,-400.0,0.00014013,2]
[361045476,1747212661778,-520.96,0.00014013,2]
[361045477,1747212661788,-2264.97,0.00014013,2]
[361045478,1747212661799,-400.0,0.00014013,2]
[361045479,1747212661808,-664.05,0.00014013,2]
[361045480,1747212661817,-400.0,0.00014013,2]
[361045481,1747212661827,-469.99,0.00014013,2]
[361045482,1747212661836,-1956.27,0.00014013,2]
[361045483,1747212661845,-150.0,0.00014149,2]
[361045484,1747212661855,-968.37590555,0.00014247,2]
[361045485,1747212661865,-1000.0,0.00014247,2]
[361045486,1747212661874,-1000.0,0.00014247,2]
[361045487,1747212661885,-199.56562815,0.0001426,2]
[361045488,1747212661898,-713.39,0.00014286,2]
[361045489,1747212661908,-1769.42,0.00014286,2]
[361045490,1747212661918,-427.16,0.00014286,2]
[361045491,1747212661928,-17816.0,0.00014286,2]
[361045492,1747212661937,-430.31,0.00014286,2]
[361045493,1747212661947,-628.05,0.00014286,2]
[361045494,1747212661957,-4836.25,0.00014286,2]
[361045495,1747212661967,-1348.75,0.00014286,2]
[361045496,1747212661977,-1521.19,0.00014286,2]
[361045497,1747212661987,-400.0,0.00014286,2]
[361045498,1747212661998,-480.55,0.00014286,2]
[361045499,1747212662008,-668.98,0.00014286,2]
[361045500,1747212662018,-430.3,0.00014286,2]
[361045501,1747212662027,-400.0,0.00014286,2]
[361045502,1747212662037,-509.21,0.00014286,2]
[361045503,1747212662048,-400.0,0.00014286,2]
[361045504,1747212662058,-2789.98,0.00014286,2]
[361045505,1747212662069,-1989.58,0.00014286,2]
[361045506,1747212662080,-6723.97,0.00014286,2]
[361045507,1747212662089,-11464.28,0.00014286,2]
[361045508,1747212662099,-2391.36,0.00014286,2]
[361045509,1747212662109,-614.14,0.00014286,2]
[361045510,1747212662119,-5378.41,0.00014286,2]
[361045511,1747212662129,-1868.1,0.00014286,2]
[361045512,1747212662142,-400.0,0.00014286,2]
[361045513,1747212662152,-753.17,0.00014286,2]
[361045514,1747212662162,-2175.0,0.00014286,2]
[361045515,1747212662171,-3011.87,0.00014286,2]
[361045516,1747212662180,-13676.86,0.00014286,2]
[361045517,1747212662189,-528.71,0.00014286,2]
[361045518,1747212662199,-4037.31,0.00014286,2]
[361045519,1747212662209,-1269.6,0.00014286,2]
[361045520,1747212662218,-7881.18,0.00014286,2]
[361045521,1747212662228,-2188.86,0.00014286,2]
[361045522,1747212662239,-400.0,0.00014286,2]
[361045523,1747212662249,-4201.44,0.00014286,2]
[361045524,1747212662258,-400.0,0.00014286,2]
[361045525,1747212662268,-728.81,0.00014286,2]
[361045526,1747212662278,-400.0,0.00014286,2]
[361045527,1747212662288,-400.0,0.00014286,2]
[361045528,1747212662297,-9541.87,0.00014286,2]
[361045529,1747212662307,-540.26,0.00014286,2]
[361045530,1747212662317,-2971.26,0.00014286,2]
[361045531,1747212662328,-6394.05,0.00014286,2]
[361045532,1747212662338,-8616.98,0.00014286,2]
[361045533,1747212662347,-565.48,0.00014286,2]
[361045534,1747212662358,-407.38,0.00014286,2]
[361045535,1747212662367,-747.7,0.00014286,2]
[361045536,1747212662377,-4353.57,0.00014286,2]
[361045537,1747212662391,-3223.62,0.00014286,2]
[361045538,1747212662400,-400.0,0.00014287,2]
[361045539,1747212662409,-400.0,0.00014287,2]
[361045540,1747212662419,-460.82,0.00014287,2]
[361045541,1747212662429,-428.28,0.00014287,2]
[361045542,1747212662438,-400.0,0.00014287,2]
[361045543,1747212662448,-400.0,0.00014287,2]
[361045544,1747212662459,-510.55091275,0.00014287,2]
[361045545,1747212662468,-546.33,0.00014287,2]
[361045546,1747212662480,-889.65,0.00014287,2]
[361045547,1747212662489,-400.0,0.00014287,2]
[361045548,1747212662501,-400.0,0.00014287,2]
[361045549,1747212662511,-583.66,0.00014287,2]
[361045550,1747212662521,-400.0,0.00014287,2]
[361045551,1747212662531,-1600.14,0.00014287,2]
[361045552,1747212662541,-1040.08,0.00014287,2]
[361045553,1747212662552,-400.0,0.00014287,2]
[361045554,1747212662565,-1802.3,0.00014287,2]
[361045555,1747212662575,-151.0,0.00014287,2]
[361045556,1747212662585,-1221.23,0.00014287,2]
[361045557,1747212662595,-1895.91,0.00014287,2]
[361045558,1747212662605,-492.84,0.00014287,2]
[361045559,1747212662615,-439.71069072,0.00014287,2]
[361045560,1747212662626,-1506.57,0.00014287,2]
[361045561,1747212662639,-2563.99,0.00014287,2]
[361045562,1747212662650,-840.38,0.00014287,2]
[361045563,1747212662660,-482.41,0.00014287,2]
[361045564,1747212662671,-420.5,0.00014287,2]
[361045565,1747212662681,-400.0,0.00014287,2]
[361045566,1747212662743,-527.69,0.00014287,2]
[361045567,1747212662753,-18564.33,0.00014287,2]
[361045568,1747212662763,-1343.88,0.00014287,2]
[361045569,1747212662773,-2099.34,0.00014287,2]
[361045570,1747212662782,-7356.73,0.00014287,2]
[361045571,1747212662792,-400.0,0.00014287,2]
[361045572,1747212662801,-3060.21,0.00014287,2]
[361045573,1747212662812,-400.0,0.00014287,2]
[361045574,1747212662822,-7402.41,0.00014287,2]
[361045575,1747212662831,-988.29,0.00014287,2]
[361045576,1747212662842,-1425.89,0.00014287,2]
[361045577,1747212662851,-703.29,0.00014287,2]
[361045578,1747212662861,-400.0,0.00014287,2]
[361045579,1747212662871,-400.0,0.00014287,2]
[361045580,1747212662881,-569.77,0.00014287,2]
[361045581,1747212662895,-945.01,0.00014287,2]
[361045582,1747212662905,-895.63,0.00014287,2]